Workbook

Sheet Calculator
C2: 2016 RQX Battery Life Calculator
B4: 1 | C4: Select a radio model. | D4: RQX-111 (800mW, use 3 D-cell batteries)
B6: 2 | C6: Select a battery type. | D6: D-cell Alkaline
B8: 3 | C8: Select Automatic Turn-Off, Always On, or Battery Saver operation.
B10: 4 | C10: How many times per day will the Callbox be used? | D10: 1
B12: 5 | C12: How long does it take to respond to a call from the Callbox? | D12: 10 | E12: seconds | F12: (Reset Time)
C13: NOTE: The Reset Time must be programmed to allow for the longest response time. (10 second factory default)
B15: 6 | C15: How many times will the Callbox transmit each time it is used? | D15: 1
B17: 7 | C17: What is the average length of each transmission? | D17: 5 | E17: seconds
B19: 8 | C19: What is the average length of each received response message? | D19: 5 | E19: seconds
B21: 9 | C21: What is the Battery Saver Sleep Time? | D21: 0.5 | E21: seconds | F21: (Battery Saver "Sleep" Time)
C23: BATTERY LIFE
C25: Battery Capacity: | D25: =Data!B24 -> 14997.92438 | E25: mAH
C27: Total Daily Use: | D27: =Data!F33 -> 2232.852778 | E27: mAH
C29: Battery life (days) | D29: =Data!F34 -> 6.71693384 | E29: Days
C31: Total transmissions | D31: =Data!F35 -> 6.71693384 | E31: Transmissions
C35: NOTE: When a "7-Series" model is selected an 8 second "Greeting" message and 3 second "Alert" message are added

Sheet Data (hidden)
A1: WARNING! DO NOT CHANGE ANY VALUES ON THIS SHEET | N1: Sleep | O1: RX | P1: TX | Q1: SB
I2: <25mA | J2: 100mA | K2: 200mA | L2: 500mA | M2: 1A | N2: time | O2: time | P2: time | Q2: time
A3: Current Requirements | B3: RQX-111 | C3: RQX-117 | D3: RQX-411 | E3: RQX-417 | H3: Batteries | I3: mAH | J3: mAH | K3: mAH | L3: mAH | M3: mAH | N3: <25m | O3: 200-500mA | P3: 500mA-1A | Q3: 100mA
A4: Off | B4: 0 | C4: 0 | D4: 0 | E4: 0 | F4: mA | H4: D-cell Alkaline | I4: =600*25 -> 15000 | J4: =110*100 -> 11000 | K4: =42*200 -> 8400 | L4: =8*500 -> 4000 | M4: =2*1000 -> 2000 | N4: =($B$31/(24*60))*I4 -> 899677.0833 | O4: =IF(B14>1,($B$27/(24*60))*(L4+((K4-L4)/300)*(500-$D$27)),($B$27/($B$30))*(L4+((K4-L4)/300)*(500-$D$27))) -> 24.07407407 | P4: =IF(B14>1,($B$26/(24*60))*(M4+((L4-M4)/500)*(1000-D26)),($B$26/($B$30))*(M4+((L4-M4)/500)*(1000-D26))) -> 13.88888889 | Q4: =IF(B14>1,($B$28+$B$25+$B$29)/(24*60)*J4,($B$28+$B$25+$B$29)/($B$30)*J4) -> 160.4166667 | R4: =IF(B14>1,SUM((N4:Q4))/60,SUM((O4:Q4))) -> 14997.92438
A5: Sleep | B5: 16 | C5: 16 | D5: 16 | E5: 16 | F5: mA | H5: D-cell NiMH | I5: 10000 | J5: 10000 | K5: 10000 | L5: 10000 | M5: 10000 | N5: =($B$31/(24*60))*I5 -> 599784.7222 | O5: =IF(B15>1,($B$27/(24*60))*(L5+((K5-L5)/300)*(500-$D$27)),($B$27/($B$30))*(L5+((K5-L5)/300)*(500-$D$27))) -> 1612.903226 | P5: =IF(B15>1,($B$26/(24*60))*(M5+((L5-M5)/500)*(1000-D27)),($B$26/($B$30))*(M5+((L5-M5)/500)*(1000-D27))) -> 1612.903226 | Q5: =IF(B15>1,($B$28+$B$25+$B$29)/(24*60)*J5,($B$28+$B$25+$B$29)/($B$30)*J5) -> 6774.193548 | R5: =IF(B15>1,SUM((N5:Q5))/60,SUM((O5:Q5))) -> 10000
A6: Standby | B6: 94 | C6: 94 | D6: 94 | E6: 94 | F6: mA | H6: AA-cell Alkaline | I6: =110*25 -> 2750 | J6: =24.4*100 -> 2440 | K6: =10.4*200 -> 2080 | L6: =2.8*500 -> 1400 | M6: =0.8*1000 -> 800 | N6: 164940.7986 | O6: 6.435185185 | P6: 6.556944444 | Q6: 35.58333333 | R6: 2749.822901
A7: Receive | B7: 300 | C7: 300 | D7: 300 | E7: 300 | F7: mA | H7: AA-cell Lithium | I7: =120*25 -> 3000 | J7: =30*100 -> 3000 | K7: =15*200 -> 3000 | L7: =6*500 -> 3000 | M7: =3*1000 -> 3000 | N7: 179935.4167 | O7: 483.8709677 | P7: 483.8709677 | Q7: 2032.258065 | R7: 3000
A8: Transmit (low power) | B8: 500 | C8: 590 | D8: 580 | E8: 590 | F8: mA | H8: AA-cell NiMH | I8: 2500 | J8: 2500 | K8: 2500 | L8: =(300/60)*460 -> 2300 | M8: =(110/60)*1200 -> 2200 | N8: 149946.1806 | O8: 8.449074074 | P8: 8.333333333 | Q8: 36.45833333 | R8: 2499.990355
A9: Transmit (high power) | B9: 500 | C9: 760 | D9: 720 | E9: 900 | F9: mA | H9: C-cell Alkaline | I9: 6800 | J9: 6300 | K9: 5500 | L9: 3000 | M9: 1000 | N9: 407853.6111 | O9: 16.2037037 | P9: 16.06944444 | Q9: 91.875 | R9: 6799.629321
H10: NOTE: Capacity rated at 1.1V EOL for D-cell, 1.0V EOL for AA
A11: User Configuration
A12: Radio Model | B12: =Calculator!$D$4 -> RQX-111 (800mW, use 3 D-cell batteries) | H12: Battery data | I12: <25mA | J12: 100mA | K12: 200mA | L12: 500mA | M12: 1A
A13: Battery | B13: =Calculator!$D$6 -> D-cell Alkaline | I13: mAH | J13: mAH | K13: mAH | L13: mAH | M13: mAH
A14: Auto Turn-Off / Intercom | B14: 2 | C14: =IF(B14=1,"Auto Turn-Off",(IF(B14=2,"Intercom","Power Saver"))) -> Intercom | H14: Energizer E95 Alkaline D | I14: =600*25 -> 15000 | J14: =110*100 -> 11000 | K14: =42*200 -> 8400 | L14: =8*500 -> 4000 | M14: =2*1000 -> 2000
A15: Daily Usage | B15: =Calculator!D10 -> 1 | H15: Energizer EN95 Alkaline D | I15: =600*25 -> 15000 | J15: =110*100 -> 11000 | K15: =42*200 -> 8400 | L15: =9*500 -> 4500 | M15: =2.2*1000 -> 2200 | Q15: =(L4+((K4-L4)/300)*(500-$D$27)) -> 6933.333333
A16: Initial Response | B16: =Calculator!D12 -> 10 | C16: sec. | H16: Duracell MN1300 Alkaline D | I16: =600*25 -> 15000 | J16: =110*100 -> 11000 | K16: =38*250 -> 9500 | L16: =11*500 -> 5500 | M16: =2.5*1000 -> 2500 | N16: @1.1V EOL
A17: Number of Transmissions | B17: =Calculator!D15 -> 1 | H17: Procell PC1300 Alkaline D | I17: =600*25 -> 15000 | J17: =110*100 -> 11000 | K17: =37*250 -> 9250 | L17: =11.5*500 -> 5750 | M17: =2.1*1000 -> 2100
A18: Length of Transmissions | B18: =Calculator!D17 -> 5 | C18: sec. | H18: Duracell Coppertop MN1500 AA | I18: =110*25 -> 2750 | J18: =24.4*100 -> 2440 | K18: =10.4*200 -> 2080 | L18: =2.8*500 -> 1400 | M18: =0.8*1000 -> 800
A19: Length of Response | B19: =Calculator!D19 -> 5 | C19: sec. | H19: Energizer E91 Alkaline AA | I19: 2450 | J19: 2000 | K19: 1800 | L19: 700 | M19: =((2*$B$16)+($B$17*$B$18)+($B$17*$B$19)) -> 30
A20: RQX Turn-Off Time | B20: =IF($B$16 > 10,$B$16,10) -> 10 | C20: sec. | H20: Energizer EA91 Lithium AA | I20: 3250 | J20: 3200 | K20: 3200 | L20: 2950 | M20: =((2*$B$16)+($B$17*$B$18)+($B$17*$B$19)) -> 30
A21: Power Saver Time | B21: =Calculator!D21 -> 0.5 | C21: sec. | H21: Energizer EN91 Alkaline AA | L21: =2.25*500 -> 1125 | M21: =((2*$B$16)+($B$17*$B$18)+($B$17*$B$19)) -> 30
H22: Energizer L91 Lithium AA | I22: =120*25 -> 3000 | J22: =30*100 -> 3000 | K22: =15*200 -> 3000 | L22: =6*500 -> 3000 | M22: =3*1000 -> 3000
A23: Daily Usage | H23: Duracell Procell PC1500 AA | I23: =50*50 -> 2500 | J23: =23*100 -> 2300 | K23: =9.85*200 -> 1970 | L23: =2.25*500 -> 1125 | M23: =((2*$B$16)+($B$17*$B$18)+($B$17*$B$19)) -> 30
A24: Battery capacity: | B24: =VLOOKUP($B$13,$H$4:$R$9,11,FALSE) -> 14997.92438 | C24: mAH | H24: Tenergy 10320 AA NiMH | I24: 2500 | J24: 2500 | K24: 2500 | L24: =(300/60)*460 -> 2300 | M24: =(110/60)*1200 -> 2200
A25: Initial response time: | B25: =B16*B15 -> 10 | C25: sec. | D25: =VLOOKUP($B$12,$A$38:$F$49,4,FALSE) -> 93 | E25: mA | F25: =(B25/3600)*D25 -> 0.2583333333 | G25: mAH | H25: Tenergy 10105 D NiMH | I25: 10000 | J25: 10000 | K25: 10000 | L25: 10000 | M25: 10000
A26: Transmitted messages: | B26: =IF(MID(B12,7,1)="7",(B17*B18*B15)+(3*B15),(B17*B18*B15)) -> 5 | C26: sec. | D26: =VLOOKUP($B$12,$A$38:$F$49,6,FALSE) -> 500 | E26: mA | F26: =(B26/3600)*D26 -> 0.6944444444 | G26: mAH | H26: Energizer EN93 Alkaline C | I26: 6750 | J26: 6300 | K26: 6000 | L26: 2650 | M26: 930 | N26: @1.0V EOL
A27: Received messages: | B27: =IF(MID(B12,7,1)="7",(B17*B19*B15)+(8*B15),(B17*B19*B15)) -> 5 | C27: sec. | D27: =VLOOKUP($B$12,$A$38:$F$49,5,FALSE) -> 300 | E27: mA | F27: 0.4166666667 | G27: mAH | H27: Duracell MN1400 Alkaline C | K27: 5175 | L27: 3375 | M27: 1300 | N27: @1.0V EOL
A28: TX/RX dead time: | B28: =B17*1*B15 -> 1 | C28: sec. | D28: =VLOOKUP($B$12,$A$38:$F$49,4,FALSE) -> 93 | E28: mA | F28: 0.02583333333 | G28: mAH
A29: RQX Turn-Off time: | B29: =B20*B15 -> 10 | C29: sec. | D29: =VLOOKUP($B$12,$A$38:$F$49,4,FALSE) -> 93 | E29: mA | F29: 0.2583333333 | G29: mAH
A30: Total Call Time: | B30: =SUM(B25:B29) -> 31 | C30: sec.
A31: Off Time: | B31: =(60*60*24)-B30 -> 86369 | C31: sec. | D31: =IF(B14=1,VLOOKUP($B$12,$A$38:$G$49,2,FALSE),IF(B14=2,VLOOKUP($B$12,$A$38:$G$49,4,FALSE),VLOOKUP($B$12,$A$38:$G$49,7,FALSE))) -> 93 | E31: mA | F31: 2231.199167 | G31: mAH
A33: Total Daily Use: | F33: =SUM(F25:F31) -> 2232.852778 | G33: mAH
A34: Battery Life (days): | F34: =B24/F33 -> 6.71693384 | G34: days
A35: Total number of transmissions: | F35: =B15*B17*F34 -> 6.71693384 | G35: transmissions
A37: Models | B37: Off | C37: Sleep | D37: Standby | E37: RX | F37: TX | G37: PS
A38: RQX-111 (800mW, use 3 D-cell batteries) | B38: 0 | C38: 13 | D38: 93 | E38: 300 | F38: 500 | G38: =($B$54*C38)+((1-$B$54)*D38) -> 20.27272727
A39: RQX-117 (800mW, use 3 D-cell batteries) | B39: 0 | C39: 13 | D39: 93 | E39: 300 | F39: 500 | G39: 20.27272727
A40: RQX-121 (2.5W, use 6 AA or D-cell batteries) | B40: 0 | C40: 13 | D40: 100 | E40: 500 | F40: 760 | G40: 20.90909091
A41: RQX-127 (2.5W, use 6 AA or D-cell batteries) | B41: 0 | C41: 13 | D41: 100 | E41: 500 | F41: 760 | G41: 20.90909091
A42: RQX-411 (700mW, use 3 D-cell batteries) | B42: 0 | C42: 13 | D42: 93 | E42: 300 | F42: 580 | G42: 20.27272727
A43: RQX-417 (700mW, use 3 D-cell batteries) | B43: 0 | C43: 13 | D43: 93 | E43: 300 | F43: 580 | G43: 20.27272727
A44: RQX-421 (2W, use 6 AA or D-cell batteries) | B44: 0 | C44: 13 | D44: 100 | E44: 500 | F44: 900 | G44: 20.90909091
A45: RQX-427 (2W, use 6 AA or D-cell batteries) | B45: 0 | C45: 13 | D45: 100 | E45: 500 | F45: 900 | G45: 20.90909091
A46: RQX-156-XT (1.5W, use 6 D-cell batteries) | B46: 0 | C46: 60 | D46: 107 | E46: 189 | F46: 550 | G46: 64.27272727
A47: RQX-157-XT (1.5W, use 6 D-cell batteries) | B47: 0 | C47: 60 | D47: 107 | E47: 189 | F47: 550 | G47: 64.27272727
A48: RQX-456-XT (2W, use 6 D-cell batteries) | B48: 0 | C48: 60 | D48: 107 | E48: 189 | F48: 427 | G48: 64.27272727
A49: RQX-457-XT (2W, use 6 D-cell batteries) | B49: 0 | C49: 60 | D49: 107 | E49: 189 | F49: 427 | G49: 64.27272727
A51: Power Saver
A52: Off Time | B52: =B21 -> 0.5 | C52: ms
A53: On time | B53: 0.05 | C53: ms
A54: percent off | B54: =B52/(B52+B53) -> 0.9090909091
